bitfinex-derivatives/quotes_ETHF0:USTF0_20250504
["timestamp","ask_amount","ask_price","bid_price","bid_amount"]
[1746327689380,3.59988,1833.6,1833.5,4.0259]
[1746327689587,3.59988,1833.6,1833.5,0.8181]
[1746327690489,3.59988,1833.6,1833.5,1.90874]
[1746327690690,3.59988,1833.6,1833.5,3.50474]
[1746327691185,1.7042,1833.6,1833.5,3.50474]
[1746327691381,1.7042,1833.6,1833.5,7.05374]
[1746327691789,2.79478,1833.6,1833.5,7.05374]
[1746327691987,1.09056,1833.7,1833.6,1.09058]
[1746327692287,3.3174,1833.8,1833.6,2.82898]
[1746327693389,1.09052,1833.7,1833.6,1.7384]
[1746327693591,1.09058,1833.6,1833.5,4.0259]
[1746327693785,1.09058,1833.6,1833.5,0.8181]
[1746327693986,1.09064,1833.5,1833.4,3.546]
[1746327694187,3.48754,1833.5,1833.4,3.546]
[1746327694882,1.0907,1833.4,1833.3,4.3641]
[1746327695083,3.5123,1833.4,1833.3,4.3641]
[1746327699190,3.5123,1833.4,1833.3,0.8181]
[1746327714599,3.5123,1833.4,1833.3,2.4641]
[1746327718403,3.5123,1833.4,1833.3,0.8181]
[1746327723508,1.09076,1833.3,1833.2,1.2558]
[1746327723709,2.74176,1833.3,1833.2,1.2558]
[1746327723921,1.09088,1833.1,1833.0,3.545]
[1746327724208,1.09094,1833.0,1832.9,6.1687]
[1746327724511,2.74194,1833.0,1832.9,1.2559]
[1746327726209,6.42994,1833.0,1832.9,1.2559]
[1746327728213,1.09112,1832.7,1832.6,7.2886913]
[1746327728399,4.29892,1832.7,1832.6,7.2886913]
[1746327729008,5.87022,1832.7,1832.6,7.2886913]
[1746327729811,2.66242,1832.7,1832.6,7.2886913]
[1746327731711,2.66242,1832.7,1832.4,20.80601272]
[1746327731712,1.5713,1832.7,1832.4,6.33088]
[1746327732009,1.09124,1832.5,1832.4,6.33088]
[1746327732211,3.51372,1832.6,1832.4,6.33088]
[1746327732412,2.69084,1832.5,1832.4,6.33088]
[1746327732712,1.5996,1832.5,1832.4,6.33088]
[1746327732912,1.09115,1832.7,1832.5,1.09121]
[1746327733114,1.09118,1832.6,1832.5,2.78581]
[1746327733713,1.09118,1832.6,1832.5,1.6946]
[1746327733911,2.68258,1832.6,1832.5,1.6946]
[1746327734107,2.68258,1832.6,1832.5,2.78584]
[1746327734305,2.68258,1832.6,1832.5,1.6946]
[1746327735612,1.09124,1832.5,1832.4,3.545]
[1746327735912,1.5914,1832.6,1832.4,3.545]
[1746327736105,1.5914,1832.6,1832.5,2.67514]
[1746327736304,1.93908,1832.8,1832.5,9.7917]
[1746327736511,1.93908,1832.8,1832.7,1.09112]
[1746327736912,1.93908,1832.8,1832.7,2.73762]
[1746327737109,1.09108,1832.8,1832.7,2.73762]
[1746327737312,4.7992,1832.9,1832.8,1.09106]
[1746327737511,5.89023,1832.9,1832.8,1.6465]
[1746327737715,2.68243,1832.9,1832.8,1.6465]
[1746327739116,1.09106,1832.8,1832.7,4.63708]
[1746327739313,2.74606,1832.8,1832.7,5.1925]
[1746327739811,2.74606,1832.8,1832.7,6.28362]
[1746327740516,2.74606,1832.8,1832.7,5.1925]
[1746327741121,1.655,1832.8,1832.5,5.10279]
[1746327741321,2.78612,1832.7,1832.6,3.546]
[1746327743912,1.09118,1832.6,1832.5,3.2078]
[1746327744109,3.47198,1832.6,1832.5,6.7538]
[1746327747822,3.47198,1832.6,1832.5,3.2078]
[1746327748015,1.09124,1832.5,1832.4,0.5353]
[1746327748215,3.59144,1832.5,1832.4,0.5353]
[1746327754033,6.79924,1832.5,1832.4,0.5353]
[1746327754233,10.48724,1832.5,1832.4,0.5353]
[1746327756237,6.79924,1832.5,1832.4,0.5353]
[1746327757434,1.09136,1832.3,1832.2,5.2855]
[1746327757734,1.09136,1832.3,1832.2,6.37692]
[1746327757932,1.09136,1832.3,1832.2,5.2855]
[1746327760940,1.09136,1832.3,1832.2,6.37692]
[1746327761538,1.09136,1832.3,1832.2,5.2855]
[1746327762540,3.2078,1832.6,1832.2,5.2855]
[1746327762737,1.09133,1832.4,1832.3,1.6362]
[1746327763644,2.66963,1832.4,1832.3,1.6362]
[1746327764344,2.66963,1832.4,1832.3,2.72756]
[1746327764642,2.66963,1832.4,1832.3,1.6362]
[1746327768246,1.09136,1832.3,1832.2,3.544]
[1746327768443,2.80236,1832.3,1832.2,3.544]
[1746327768747,2.80236,1832.3,1832.2,4.63542]
[1746327768940,1.711,1832.3,1832.2,4.63542]
[1746327769143,2.80236,1832.3,1832.2,6.21182]
[1746327769342,1.711,1832.3,1832.2,6.21182]
[1746327770349,2.80236,1832.3,1832.2,5.1204]
[1746327771644,2.80236,1832.3,1832.2,6.21182]
[1746327772039,2.80236,1832.3,1832.2,5.1204]
[1746327772849,2.80236,1832.3,1832.2,3.544]
[1746327773151,2.80236,1832.3,1832.2,4.63542]
[1746327773449,2.80236,1832.3,1832.2,3.544]
[1746327774346,1.09142,1832.2,1832.1,5.4673]
[1746327774546,4.41912,1832.2,1832.1,7.2872]
[1746327774752,4.41912,1832.2,1832.1,6.7518]
[1746327778054,4.41912,1832.2,1832.1,3.544]
[1746327779050,1.09147,1832.1,1832.0,2.1498]
[1746327779358,2.72627,1832.1,1832.0,5.6948]
[1746327779654,2.72627,1832.1,1832.0,6.78633]
[1746327779855,2.72627,1832.1,1832.0,5.6948]
[1746327780050,2.72627,1832.1,1832.0,6.78633]
[1746327780244,2.72627,1832.1,1832.0,10.47433]
[1746327780447,2.72627,1832.1,1832.0,9.3828]
[1746327780644,2.72627,1832.1,1832.0,5.8378]
[1746327780849,2.72627,1832.1,1832.0,7.7685]
[1746327781150,2.72627,1832.1,1832.0,4.0805]
[1746327784052,2.72627,1832.1,1832.0,5.17203]
[1746327784354,2.72627,1832.1,1832.0,4.0805]
[1746327784556,2.72627,1832.1,1832.0,5.17203]
[1746327785350,2.72627,1832.1,1832.0,4.0805]
[1746327786858,2.72627,1832.1,1832.0,5.17203]
[1746327787354,2.72627,1832.1,1832.0,4.0805]
[1746327787654,1.6348,1832.1,1832.0,5.17203]
[1746327787858,1.6348,1832.1,1832.0,6.79633]
[1746327788751,1.6142,1832.2,1832.0,7.62449]
[1746327789158,1.09147,1832.1,1832.0,7.62449]
[1746327789759,2.70565,1832.2,1832.1,1.09147]
[1746327790659,1.7163,1832.3,1832.1,3.2078]
[1746327790859,4.68791566,1832.4,1832.3,1.09136]
[1746327791059,4.68791566,1832.4,1832.3,4.63336]
[1746327791264,6.40421566,1832.4,1832.3,4.63336]
[1746327791558,6.40421566,1832.4,1832.3,3.542]
[1746327793660,5.31286566,1832.4,1832.3,4.63336]
[1746327794060,5.31286566,1832.4,1832.3,8.32136]
[1746327794563,6.40416566,1832.4,1832.3,8.32136]
[1746327795062,2.8076,1832.4,1832.3,7.23]
[1746327795258,2.8076,1832.4,1832.3,3.542]
[1746327795962,2.8076,1832.4,1832.3,4.0774]
[1746327796161,2.8076,1832.4,1832.3,5.16876]
[1746327797162,2.8076,1832.4,1832.3,4.0774]
[1746327797360,2.8076,1832.4,1832.3,5.16876]
[1746327797661,1.7163,1832.4,1832.3,5.16876]
[1746327798053,3.59656566,1832.5,1832.3,8.85676]
[1746327798260,3.59656566,1832.5,1832.4,2.6949]
[1746327798558,3.59656566,1832.5,1832.4,3.5165]
[1746327798763,5.31476566,1832.6,1832.5,1.09124]
[1746327799262,5.31476566,1832.6,1832.5,6.38284]
[1746327800360,5.31476566,1832.6,1832.5,9.59064]
[1746327800552,3.59656566,1832.6,1832.5,9.59064]
[1746327801364,4.68774566,1832.6,1832.5,6.8958]
[1746327801565,6.37724566,1832.6,1832.5,6.8958]
[1746327802271,2.78068,1832.6,1832.5,6.8958]
[1746327802455,1.6895,1832.6,1832.5,7.98704]
[1746327802868,2.78068,1832.6,1832.5,7.98704]
[1746327803064,2.78068,1832.6,1832.5,6.8958]
[1746327804167,2.78068,1832.6,1832.5,3.2078]
[1746327805466,7.78068,1832.6,1832.5,3.2078]
[1746327805658,2.78068,1832.6,1832.5,3.2078]
[1746327807069,1.0913,1832.4,1832.3,7.2852]
[1746327807871,1.0913,1832.4,1832.3,4.0774]
[1746327808066,3.5066,1832.4,1832.3,4.0774]
[1746327812474,2.4153,1832.4,1832.3,5.16876]
[1746327812971,1.5686,1832.4,1832.3,5.16876]
[1746327813270,1.5686,1832.4,1832.3,13.73376]
[1746327814071,1.5686,1832.4,1832.3,10.04576]
[1746327814473,1.5686,1832.4,1832.3,11.75586]
[1746327815066,0.8432,1832.5,1832.4,1.0913]
[1746327815370,7.13936566,1832.6,1832.5,1.09124]
[1746327815764,1.0913,1832.4,1832.3,4.29914]
[1746327815963,0.55604,1832.4,1832.3,3.539]
[1746327816374,1.09127,1832.5,1832.3,3.539]
[1746327816569,5.51468566,1832.6,1832.4,2.6645]
[1746327816769,1.09124,1832.5,1832.4,2.6645]
[1746327817677,1.09124,1832.5,1832.4,1.5732]
[1746327817875,2.81024,1832.5,1832.4,1.5732]
[1746327818274,1.0913,1832.4,1832.3,7.83811]
[1746327818573,2.8103,1832.4,1832.3,7.83811]
[1746327818974,1.719,1832.4,1832.3,7.83811]
[1746327819162,1.719,1832.4,1832.3,11.52611]
[1746327819974,2.8103,1832.4,1832.3,11.52611]
[1746327820673,1.719,1832.4,1832.3,11.52611]
[1746327821173,2.8103,1832.4,1832.3,11.52611]
[1746327821478,2.8103,1832.4,1832.3,8.31831]
[1746327821677,2.8103,1832.4,1832.3,11.52611]
[1746327822179,1.719,1832.4,1832.3,11.52611]
[1746327823577,2.8103,1832.4,1832.3,11.52611]
[1746327825481,2.8103,1832.4,1832.3,10.4348]
[1746327826686,2.8103,1832.4,1832.3,7.227]
[1746327826983,2.8103,1832.4,1832.3,8.31836]
[1746327830287,1.719,1832.4,1832.3,8.31836]
[1746327830486,1.719,1832.4,1832.3,11.52616]
[1746327830985,2.8103,1832.4,1832.3,11.52616]
[1746327831288,1.719,1832.4,1832.3,11.52616]
[1746327831589,2.8103,1832.4,1832.3,11.52616]
[1746327832380,2.8103,1832.4,1832.3,10.4348]
[1746327832587,2.8103,1832.4,1832.3,7.227]
[1746327837395,2.8103,1832.4,1832.3,10.4348]
[1746327838596,2.8103,1832.4,1832.3,7.227]
[1746327839296,2.8103,1832.4,1832.3,10.4348]
[1746327840300,2.8103,1832.4,1832.3,11.52616]
[1746327841404,2.8103,1832.4,1832.3,10.4348]
[1746327851010,1.0913,1832.4,1832.3,10.4348]
[1746327851201,3.59656566,1832.6,1832.5,1.09124]
[1746327851406,3.59656566,1832.6,1832.5,4.29904]
[1746327852008,5.17126566,1832.6,1832.5,4.29904]
[1746327852204,5.17126566,1832.6,1832.5,7.98704]
[1746327852912,6.26244566,1832.6,1832.5,6.8958]
[1746327853108,6.26244566,1832.6,1832.5,3.688]
[1746327853411,1.09124,1832.5,1832.4,3.536]
[1746327853612,2.67794,1832.5,1832.4,3.536]
[1746327854113,1.5867,1832.5,1832.4,8.3153]
[1746327854509,2.67794,1832.5,1832.4,8.3153]
[1746327854709,2.67794,1832.5,1832.4,7.224]
[1746327855415,2.67794,1832.5,1832.4,8.3153]
[1746327855823,2.67794,1832.5,1832.4,7.224]
[1746327857209,1.5867,1832.5,1832.4,8.3153]
[1746327857414,2.67794,1832.5,1832.4,11.5231]
[1746327858717,2.67794,1832.5,1832.4,10.4318]
[1746327858918,2.67794,1832.5,1832.4,11.5231]
[1746327859119,1.5867,1832.5,1832.4,11.5231]
[1746327859821,1.09118,1832.6,1832.5,1.09121]
[1746327860011,1.6629,1832.7,1832.5,1.09121]
[1746327860012,4.47426,1832.7,1832.5,2.74231]
[1746327860212,1.09118,1832.6,1832.5,2.74231]
[1746327861217,2.81138,1832.6,1832.5,1.6511]
[1746327861923,1.7202,1832.6,1832.5,2.74234]
[1746327862123,2.81138,1832.6,1832.5,5.3391]
[1746327862418,1.7202,1832.6,1832.5,6.43034]
[1746327862923,2.81138,1832.6,1832.5,6.43034]
[1746327863523,1.7202,1832.6,1832.5,6.43034]
[1746327864417,4.68758566,1832.9,1832.8,1.09106]
[1746327864618,6.41038566,1832.9,1832.8,4.29886]
[1746327864819,3.59656566,1832.9,1832.8,4.29886]
[1746327865019,3.59656566,1832.9,1832.8,7.55126]
[1746327865326,3.59656566,1832.9,1832.8,16.23926]
[1746327867630,3.59656566,1832.9,1832.8,11.23926]
[1746327868633,5.43930588,1833.0,1832.9,1.091]
[1746327868833,5.43930588,1833.0,1832.9,2.7628]
[1746327869130,5.43930588,1833.0,1832.9,11.4508]
[1746327869432,3.55675,1833.4,1832.9,10.3598]
[1746327869634,1.09076,1833.3,1833.2,3.2078]
[1746327869835,2.70746,1833.3,1833.2,6.7438]
[1746327870022,1.6167,1833.3,1833.2,6.7438]
[1746327870223,2.70746,1833.3,1833.2,10.4318]
[1746327870530,7.70746,1833.3,1833.2,3.688]
[1746327871327,1.09094,1833.0,1832.9,6.7438]
[1746327871526,1.09094,1833.0,1832.9,3.2078]
[1746327872121,1.92924,1833.0,1832.9,3.2078]
[1746327880339,1.091,1832.9,1832.8,3.536]
[1746327880639,3.6553,1832.9,1832.8,3.536]
[1746327881737,1.09106,1832.8,1832.7,58.8638]
[1746327881939,2.82726,1832.8,1832.7,6.7418]
[1746327882132,2.82726,1832.8,1832.7,3.2078]
[1746327882332,1.09112,1832.7,1832.6,3.534]
[1746327882533,2.82732,1832.7,1832.6,3.534]
[1746327886135,1.09118,1832.6,1832.5,3.2078]
[1746327886335,4.41918,1832.6,1832.5,6.7418]
[1746327886942,4.41918,1832.6,1832.5,3.2078]
[1746327887146,4.41918,1832.6,1832.5,6.7418]
[1746327887341,4.41918,1832.6,1832.5,3.2078]
[1746327887645,4.41918,1832.6,1832.5,6.7418]
[1746327893748,4.41918,1832.6,1832.5,3.534]
[1746327896249,4.41918,1832.6,1832.5,5.1194]
[1746327897749,4.41918,1832.6,1832.5,3.534]
[1746327898851,5.93517,1833.0,1832.6,1.09112]
[1746327899155,2.74537,1832.8,1832.7,1.09112]
[1746327899847,2.74537,1832.8,1832.7,2.76772]
[1746327900049,2.74537,1832.8,1832.7,1.6766]
[1746327900251,2.74536,1832.8,1832.7,2.76772]
[1746327900752,2.74536,1832.8,1832.7,1.6766]
[1746327901653,1.09118,1832.6,1832.4,3.2078]
[1746327901852,1.09118,1832.6,1832.5,4.62624]
[1746327902050,1.09118,1832.6,1832.5,10.03304]
[1746327902252,2.80666,1832.7,1832.5,10.03304]
[1746327902453,2.80666,1832.7,1832.6,2.80998]
[1746327902954,1.7155,1832.7,1832.6,3.62978]
[1746327903656,2.80662,1832.7,1832.6,3.62978]
[1746327904555,2.80662,1832.7,1832.6,2.5386]
[1746327905858,2.80662,1832.7,1832.6,3.62978]
[1746327906058,2.80662,1832.7,1832.6,2.80998]
[1746327908358,2.80662,1832.7,1832.6,6.34298]
[1746327909761,2.80662,1832.7,1832.6,5.2518]
[1746327910059,2.80662,1832.7,1832.6,3.533]
[1746327910250,1.09118,1832.6,1832.5,3.2078]
[1746327910451,4.39848,1832.6,1832.5,6.7408]
[1746327910654,4.39848,1832.6,1832.5,3.2078]
[1746327910862,6.5151,1832.6,1832.4,3.533]
[1746327911053,2.79504,1832.5,1832.4,3.533]
[1746327911358,2.79504,1832.5,1832.4,4.6243]
[1746327911565,2.79504,1832.5,1832.4,3.533]
[1746327917972,2.79504,1832.5,1832.4,4.6243]
[1746327918173,2.79504,1832.5,1832.4,3.533]
[1746327923374,2.79504,1832.5,1832.3,3.2078]
[1746327923375,1.0913,1832.4,1832.3,3.2078]
[1746327923569,2.6952,1832.4,1832.3,6.7418]
[1746327923776,2.6952,1832.4,1832.3,3.2078]
[1746327923964,2.6952,1832.4,1832.3,6.7418]
[1746327927579,2.6952,1832.4,1832.3,7.83316]
[1746327928279,2.6952,1832.4,1832.3,6.7418]
[1746327928481,2.6952,1832.4,1832.3,3.2078]
[1746327928779,2.6952,1832.4,1832.3,6.7418]
[1746327930080,1.0913,1832.4,1832.3,6.7418]
[1746327930273,5.43930588,1832.8,1832.3,13.371]
[1746327930579,5.43930588,1832.8,1832.7,1.09112]
[1746327930777,5.43930588,1832.8,1832.7,4.62512]
[1746327930977,5.43930588,1832.8,1832.7,12.07522]
[1746327931178,5.43930588,1832.8,1832.7,10.76322]
[1746327931374,5.43930588,1832.8,1832.7,11.61862]
[1746327931881,5.43930588,1832.8,1832.7,16.61862]
[1746327932779,1.6829,1833.2,1832.7,22.8161913]
[1746327932977,1.09088,1833.1,1833.0,3.2078]
[1746327933281,1.95538,1833.1,1833.0,10.4288]
[1746327934076,1.95538,1833.1,1833.0,6.7408]
[1746327935782,1.95538,1833.1,1833.0,3.533]
[1746327936483,1.09094,1833.0,1832.8,6.01162]
[1746327936689,3.60264,1833.0,1832.9,3.533]
[1746327936989,1.091,1832.9,1832.8,3.2078]
[1746327937283,2.7857,1832.9,1832.8,6.7408]
[1746327937479,0.8645,1833.1,1832.8,6.7408]
[1746327937480,1.09091,1833.1,1832.9,1.091]
[1746327937683,1.6947,1833.0,1832.9,2.8312]
[1746327938081,1.6947,1833.0,1832.9,6.5192]
[1746327938586,2.78564,1833.0,1832.9,5.4282]
[1746327939780,2.78564,1833.0,1832.9,3.688]
[1746327940184,1.6947,1833.0,1832.8,7.83186]
[1746327940385,3.3296,1832.9,1832.8,7.83186]
[1746327940985,1.09092,1833.1,1833.0,1.09094]
[1746327941587,4.48687,1833.2,1833.0,1.09094]
[1746327942083,2.82208,1833.1,1832.9,1.7368]
[1746327942282,2.82208,1833.1,1832.9,2.82776]
[1746327942483,1.09094,1833.0,1832.8,8.69391]
[1746327942679,2.8222,1832.9,1832.8,9.56861]
[1746327943074,2.8222,1832.9,1832.8,6.7408]
[1746327943282,2.8222,1832.9,1832.8,6.8958]
[1746327943483,11.03,1832.9,1832.8,3.688]
[1746327943680,6.03,1832.9,1832.8,3.688]
[1746327944086,1.09118,1832.6,1832.5,6.35903]
[1746327944481,1.09116,1832.7,1832.5,5.2678]
[1746327944682,2.67736,1832.7,1832.6,1.09118]
[1746327945989,2.67736,1832.7,1832.5,6.35899]
[1746327946589,2.67738,1832.6,1832.5,6.35899]
[1746327946888,2.67738,1832.6,1832.5,4.62219]
[1746327947187,2.67738,1832.6,1832.5,8.31019]
[1746327947384,1.5862,1832.6,1832.5,8.31019]
[1746327947586,1.5862,1832.6,1832.5,10.01679]
[1746327948584,2.67738,1832.6,1832.5,10.01679]
[1746327949088,2.67738,1832.6,1832.5,8.9256]
[1746327949290,2.67738,1832.6,1832.5,7.219]
[1746327949489,1.5862,1832.6,1832.5,8.31024]
[1746327949690,2.67738,1832.6,1832.5,8.9256]
[1746327950184,2.67738,1832.6,1832.5,7.219]
[1746327951091,2.67738,1832.6,1832.5,3.531]
[1746327951591,4.794,1832.6,1832.5,3.531]
[1746327951792,5.88518,1832.6,1832.5,3.531]
[1746327952703,1.09124,1832.5,1832.4,1.09128]
[1746327952992,2.71934,1832.5,1832.4,4.62228]
[1746327953289,3.55274,1832.5,1832.4,1.09128]
[1746327953490,3.55274,1832.5,1832.4,3.531]
[1746327953693,3.55274,1832.5,1832.4,4.6223]
[1746327953896,3.55274,1832.5,1832.4,3.531]
[1746327956896,1.0913,1832.4,1832.3,3.2078]
[1746327957095,2.4672,1832.4,1832.3,4.62336]
[1746327957388,2.4672,1832.4,1832.3,8.31136]
[1746327957588,3.5585,1832.4,1832.3,8.31136]
[1746327958199,3.5585,1832.4,1832.3,4.62336]
[1746327958802,1.09115,1832.7,1832.3,6.7398]
[1746327958992,4.35775,1832.7,1832.5,4.29899]
[1746327959491,1.6144,1832.6,1832.5,4.29899]
[1746327959686,1.6144,1832.6,1832.5,7.83099]
[1746327961200,1.6144,1832.6,1832.5,9.55929]
[1746327961605,2.70558,1832.6,1832.5,9.55934]
[1746327961900,2.70558,1832.6,1832.5,6.35154]
[1746327962598,2.70558,1832.6,1832.3,3.2078]
[1746327962802,2.66266,1832.5,1832.4,3.532]
[1746327963902,2.66266,1832.5,1832.4,4.6233]
[1746327964803,2.66266,1832.5,1832.4,3.532]
[1746327965095,2.66268,1832.5,1832.4,3.532]
[1746327969004,2.66268,1832.5,1832.4,4.6233]
[1746327969206,1.5714,1832.5,1832.4,4.6233]
[1746327970099,2.66264,1832.5,1832.4,4.6233]
[1746327970603,1.5714,1832.5,1832.4,4.6233]
[1746327971204,2.66264,1832.5,1832.4,4.6233]
[1746327971503,1.5714,1832.5,1832.4,4.6233]
[1746327971906,1.6522,1832.7,1832.6,1.09118]
[1746327972097,3.2634,1832.7,1832.6,1.09118]
[1746327972704,3.2634,1832.7,1832.6,2.70408]
[1746327975006,1.09118,1832.6,1832.5,3.2078]
[1746327975199,2.66038,1832.6,1832.5,3.2078]
[1746327975806,1.09124,1832.5,1832.4,3.531]
[1746327976007,2.66044,1832.5,1832.4,3.531]
[1746327976303,2.66044,1832.5,1832.4,4.6223]
[1746327976503,2.66044,1832.5,1832.4,3.531]
[1746327976806,2.66044,1832.5,1832.4,4.6223]
[1746327977797,1.5692,1832.5,1832.3,1.6993]
[1746327977998,4.2957,1832.4,1832.2,4.29916]
[1746327978205,1.5993,1832.3,1832.2,4.29916]
[1746327978404,1.5993,1832.3,1832.2,7.83016]
[1746327979109,1.5993,1832.3,1832.2,11.51816]
[1746327979407,1.5993,1832.3,1832.2,13.22086]
[1746327980808,2.69066,1832.3,1832.2,6.8958]
[1746327981110,2.69066,1832.3,1832.2,6.7388]
[1746327983812,2.69066,1832.3,1832.2,3.2078]
[1746327984314,1.09142,1832.2,1832.1,3.531]
[1746327984507,2.82942,1832.2,1832.1,3.531]
[1746327986501,1.738,1832.2,1831.9,2.69285]
[1746327986700,4.43657,1832.1,1832.0,4.62253]
[1746327986901,4.43657,1832.1,1832.0,3.531]
[1746327987310,1.09159,1831.9,1831.8,3.531]
[1746327989311,1.09171,1831.7,1831.6,10.4964913]
[1746327989507,1.09171,1831.7,1831.6,7.2886913]
[1746327990008,2.78141,1831.7,1831.6,7.2886913]
[1746327992716,2.78141,1831.7,1831.4,3.531]
[1746327992717,1.09183,1831.5,1831.4,3.531]
[1746327993115,1.09183,1831.5,1831.4,4.62289]
[1746327993816,1.09183,1831.5,1831.4,3.531]
[1746327994314,2.76633,1831.5,1831.4,3.531]
[1746327996107,1.09189,1831.4,1831.2,0.8101]
[1746327996310,1.09219,1830.9,1830.8,10.4964913]
[1746327996511,4.45058,1831.4,1830.9,1.09217]
[1746327996814,1.09217,1831.0,1830.8,16.7414913]
[1746327997207,0.8474,1831.2,1830.8,20.4295013]
[1746327997407,1.09213,1831.0,1830.9,1.09218]
[1746327997608,2.5662,1831.1,1831.0,1.09213]
[1746327997805,1.09203,1831.2,1830.9,1.6583]
[1746327998208,1.09203,1831.2,1831.1,1.09207]
[1746327998409,1.09203,1831.2,1831.1,4.62507]
[1746327998605,1.7208,1831.3,1831.2,1.09201]
[1746327998904,1.7208,1831.3,1831.2,2.82491]
[1746327999109,1.6928,1831.4,1831.3,1.09195]
[1746327999110,0.8454,1831.4,1831.3,1.09195]
[1746327999309,1.93729,1831.4,1831.3,1.7329]
[1746327999514,3.59779,1831.4,1831.2,7.98777]
[1746327999812,3.59779,1831.4,1831.2,4.77997]
[1746328000010,3.55765,1831.3,1831.2,3.688]
[1746328000209,5.93726,1831.6,1831.2,3.2078]
[1746328000517,3.3361,1831.5,1831.2,3.533]
[1746328000719,1.09195,1831.3,1831.2,3.533]
[1746328001121,2.75241,1831.4,1831.2,8.313]
[1746328001420,1.09195,1831.3,1831.2,3.688]
[1746328001716,1.6229,1831.3,1831.2,8.32701]
[1746328001920,1.6229,1831.3,1831.2,13.26821]
[1746328002114,1.6229,1831.3,1831.2,14.05681]
[1746328003425,2.76746,1831.5,1831.3,1.09192]
[1746328003620,2.76746,1831.5,1831.3,2.82532]
[1746328004321,2.71479,1831.4,1831.3,1.7334]
[1746328004522,1.6229,1831.4,1831.3,2.82535]
[1746328005021,2.71479,1831.4,1831.3,1.7334]
[1746328005230,2.71479,1831.4,1831.3,3.688]
[1746328005426,7.71479,1831.4,1831.3,3.688]
[1746328005722,5.92259,1831.4,1831.3,3.688]
[1746328006216,1.09195,1831.3,1831.2,3.548]
[1746328006416,2.75705,1831.3,1831.2,3.548]
[1746328007521,1.09213,1831.0,1830.9,4.8619]
[1746328007720,1.09213,1831.0,1830.9,8.4099]
[1746328007922,1.09213,1831.0,1830.9,6.7558]
[1746328008121,1.09235,1830.7,1830.6,3.2078]
[1746328008628,1.0923,1830.8,1830.6,4.64037]
[1746328008820,2.7259,1830.8,1830.6,6.32407]
[1746328009124,2.7259,1830.8,1830.7,4.8915]
[1746328009428,3.532,1830.8,1830.7,4.8915]
[1746328009724,3.532,1830.8,1830.7,8.4395]
[1746328010825,2.4397,1830.8,1830.7,9.53181]
[1746328011220,3.53195,1830.8,1830.7,8.4395]
[1746328011419,2.4397,1830.8,1830.7,4.30011]
[1746328011618,2.4397,1830.8,1830.7,7.84811]
[1746328012126,3.53195,1830.8,1830.7,10.4438]
[1746328012431,3.53195,1830.8,1830.7,11.53611]
[1746328012730,3.53195,1830.8,1830.7,10.4438]
[1746328012928,3.2078,1831.1,1830.7,10.4438]
[1746328013229,1.09225,1830.8,1830.7,3.2078]
[1746328013726,1.09223,1830.9,1830.7,7.84809]
[1746328013925,1.09217,1831.0,1830.8,1.09221]
[1746328014124,1.09219,1830.9,1830.8,1.6451]
[1746328014324,1.09219,1830.9,1830.8,3.688]
[1746328015028,1.09219,1830.9,1830.8,7.236]
[1746328015229,1.09219,1830.9,1830.8,3.548]
[1746328015428,1.7214,1831.0,1830.6,3.2078]
[1746328015630,3.64335,1830.8,1830.7,3.548]
[1746328015832,2.5511,1830.8,1830.7,4.64031]
[1746328016126,1.7214,1831.0,1830.9,1.09219]
[1746328016328,0.7932,1831.1,1831.0,1.09213]
[1746328016528,0.7932,1831.1,1831.0,1.6451]
[1746328016830,3.60667,1831.1,1831.0,2.73723]
[1746328017029,1.09217,1831.0,1830.8,4.30003]
[1746328017222,2.78363,1831.0,1830.9,3.548]
[1746328018529,2.78363,1831.0,1830.8,4.30003]
[1746328018730,1.6915,1830.9,1830.8,6.00233]
[1746328018931,1.6915,1830.9,1830.8,9.55033]
[1746328019229,2.78369,1830.9,1830.8,12.1461]
[1746328019528,2.78369,1830.9,1830.8,8.9383]
[1746328019828,2.78369,1830.9,1830.8,5.3903]
[1746328020032,2.78369,1830.9,1830.8,8.9383]
[1746328020432,1.6915,1830.9,1830.8,10.03055]
[1746328021325,1.6915,1830.9,1830.8,6.48255]
[1746328021526,2.78369,1830.9,1830.8,7.236]
[1746328021735,3.63619,1830.9,1830.8,7.236]
[1746328022034,3.63619,1830.9,1830.8,3.688]
[1746328022228,3.63619,1830.9,1830.8,3.548]
[1746328023031,1.09225,1830.8,1830.6,5.87943]
[1746328023231,3.68395,1830.8,1830.7,4.64131]
[1746328023537,3.68395,1830.8,1830.6,5.87945]
[1746328023835,1.7354,1830.7,1830.6,5.87945]
[1746328024031,1.7354,1830.7,1830.6,9.42845]
[1746328024230,0.8563,1830.8,1830.7,1.09231]
[1746328024423,3.68395,1830.8,1830.6,9.42843]
[1746328024629,3.68395,1830.8,1830.6,8.3361]
[1746328024827,1.7354,1830.7,1830.6,9.42847]
[1746328026228,1.94473,1830.9,1830.6,8.3361]
[1746328026229,0.8525,1830.9,1830.6,8.3361]
[1746328026533,0.8525,1830.9,1830.8,3.2078]
[1746328027135,0.8525,1830.9,1830.8,6.8958]
[1746328027431,1.94469,1830.9,1830.8,7.98805]
[1746328027927,1.94469,1830.9,1830.8,4.78025]
[1746328028435,0.8525,1830.9,1830.8,4.78025]
[1746328028635,1.6356,1831.0,1830.9,1.09219]